[Event "IV Elllobregat Open Chess Tmnt"]
[Site "Sant Boi de Llobregat, Spain"]
[Date "2023.11.30"]
[Round "1.13"]
[White "Bournel, Antoine"]
[Black "Pultinevicius, Paulius"]
[Result "1/2-1/2"]
[TimeControl "90min/40moves + 15min/end + 30sec from move 1"]
[WhiteFideId "26093553"]
[BlackFideId "12809390"]
[WhiteElo "2333"]
[BlackElo "2589"]

1. d4 {[%clk 01:30:33]} {[%emt 00:00:26]} Nf6 {[%clk 01:30:54]} {[%emt
00:00:07]} 2. c4 {[%clk 01:30:11]} {[%emt 00:00:52]} e6 {[%clk 01:31:18]}
{[%emt 00:00:06]} 3. Nf3 {[%clk 01:29:44]} {[%emt 00:00:56]} c5 {[%clk
01:31:27]} {[%emt 00:00:22]} 4. d5 {[%clk 01:29:08]} {[%emt 00:01:05]} d6
{[%clk 01:31:50]} {[%emt 00:00:08]} 5. Nc3 {[%clk 01:27:55]} {[%emt 00:01:42]}
exd5 {[%clk 01:31:12]} {[%emt 00:01:09]} 6. cxd5 {[%clk 01:27:25]} {[%emt
00:01:00]} g6 {[%clk 01:31:38]} {[%emt 00:00:05]} 7. h3 {[%clk 01:25:14]}
{[%emt 00:02:41]} a6 {[%clk 01:29:55]} {[%emt 00:02:13]} 8. a4 {[%clk
01:23:15]} {[%emt 00:02:28]} Qe7 {[%clk 01:30:08]} {[%emt 00:00:17]} 9. Bf4
{[%clk 01:13:55]} {[%emt 00:09:51]} Nbd7 {[%clk 01:28:27]} {[%emt 00:02:12]} 10.
e3 {[%clk 01:05:26]} {[%emt 00:08:59]} Bg7 {[%clk 01:28:33]} {[%emt 00:00:24]}
11. Bd3 {[%clk 00:57:39]} {[%emt 00:08:16]} O-O {[%clk 01:27:00]} {[%emt
00:02:03]} 12. O-O {[%clk 00:54:36]} {[%emt 00:03:32]} Ne8 {[%clk 01:21:21]}
{[%emt 00:06:10]} 13. e4 {[%clk 00:49:23]} {[%emt 00:05:43]} Nc7 {[%clk
01:13:32]} {[%emt 00:08:20]} 14. a5 {[%clk 00:45:28]} {[%emt 00:04:25]} Rb8
{[%clk 01:13:18]} {[%emt 00:00:44]} 15. Qc2 {[%clk 00:43:52]} {[%emt 00:02:05]}
b5 {[%clk 01:03:25]} {[%emt 00:10:24]} 16. axb6 {[%clk 00:43:54]} {[%emt
00:00:28]} Rxb6 {[%clk 01:03:51]} {[%emt 00:00:04]} 17. Nd2 {[%clk 00:40:00]}
{[%emt 00:04:24]} Ne5 {[%clk 00:59:40]} {[%emt 00:04:42]} 18. Bxe5 {[%clk
00:37:54]} {[%emt 00:02:35]} Bxe5 {[%clk 01:00:02]} {[%emt 00:00:07]} 19. Nc4
{[%clk 00:37:31]} {[%emt 00:00:54]} Rb4 {[%clk 00:58:26]} {[%emt 00:02:07]} 20.
f4 {[%clk 00:36:13]} {[%emt 00:01:47]} Bd4+ {[%clk 00:56:30]} {[%emt 00:02:26]}
21. Kh2 {[%clk 00:34:50]} {[%emt 00:01:53]} Qd8 {[%clk 00:55:58]} {[%emt
00:01:02]} 22. Rf3 {[%clk 00:31:25]} {[%emt 00:03:54]} f5 {[%clk 00:54:47]}
{[%emt 00:01:42]} 23. exf5 {[%clk 00:28:36]} {[%emt 00:03:19]} Bxf5 {[%clk
00:53:34]} {[%emt 00:01:43]} 24. Bxf5 {[%clk 00:24:53]} {[%emt 00:04:13]} Rxf5
{[%clk 00:53:59]} {[%emt 00:00:05]} 25. Ne4 {[%clk 00:23:52]} {[%emt 00:01:30]}
Rxd5 {[%clk 00:50:32]} {[%emt 00:03:57]} 26. f5 {[%clk 00:19:24]} {[%emt
00:04:58]} Rxf5 {[%clk 00:35:45]} {[%emt 00:15:16]} 27. Rxf5 {[%clk 00:18:55]}
{[%emt 00:00:58]} d5 {[%clk 00:35:50]} {[%emt 00:00:26]} 28. Rf3 {[%clk
00:12:33]} {[%emt 00:06:52]} Rxc4 {[%clk 00:35:52]} {[%emt 00:00:29]} 29. Nc3
{[%clk 00:11:41]} {[%emt 00:01:22]} Rb4 {[%clk 00:28:09]} {[%emt 00:08:13]} 30.
Raf1 {[%clk 00:09:51]} {[%emt 00:02:18]} Ne6 {[%clk 00:25:37]} {[%emt
00:03:03]} 31. Kh1 {[%clk 00:09:14]} {[%emt 00:01:07]} Bg7 {[%clk 00:24:22]}
{[%emt 00:01:45]} 32. Rf7 {[%clk 00:05:23]} {[%emt 00:04:20]} Nd4 {[%clk
00:22:51]} {[%emt 00:02:01]} 33. Qf2 {[%clk 00:04:20]} {[%emt 00:01:33]} Nf5
{[%clk 00:21:30]} {[%emt 00:01:52]} 34. Rxf5 {[%clk 00:03:39]} {[%emt
00:01:11]} gxf5 {[%clk 00:21:54]} {[%emt 00:00:06]} 35. Qxf5 {[%clk 00:03:29]}
{[%emt 00:00:38]} Rxb2 {[%clk 00:21:49]} {[%emt 00:00:37]} 36. Nxd5 {[%clk
00:03:16]} {[%emt 00:00:43]} Rb7 {[%clk 00:06:01]} {[%emt 00:16:19]} 37. Qe6+
{[%clk 00:00:53]} {[%emt 00:02:53]} Kh8 {[%clk 00:06:25]} {[%emt 00:00:06]} 38.
Qxa6 {[%clk 00:00:45]} {[%emt 00:00:37]} Rd7 {[%clk 00:02:59]} {[%emt
00:03:56]} 39. Ne3 {[%clk 00:01:04]} {[%emt 00:00:10]} Rd3 {[%clk 00:01:03]}
{[%emt 00:02:27]} 40. Qe6 {[%clk 00:15:40]} {[%emt 00:00:53]} Qa8 {[%clk
00:15:53]} {[%emt 00:00:41]} 41. Qe7 {[%clk 00:11:50]} {[%emt 00:04:20]} c4
{[%clk 00:11:57]} {[%emt 00:04:26]} 42. Rf3 {[%clk 00:03:09]} {[%emt 00:09:10]}
Rb3 {[%clk 00:07:20]} {[%emt 00:05:08]} 43. Qc5 {[%clk 00:01:20]} {[%emt
00:02:20]} c3 {[%clk 00:06:30]} {[%emt 00:01:20]} 44. Rf1 {[%clk 00:00:36]}
{[%emt 00:01:14]} c2 {[%clk 00:06:02]} {[%emt 00:00:58]} 45. Nxc2 {[%clk
00:00:34]} {[%emt 00:00:32]} Rxh3+ {[%clk 00:06:18]} {[%emt 00:00:14]} 46. Kg1
{[%clk 00:01:03]} {[%emt 00:00:01]} Rc3 {[%clk 00:05:56]} {[%emt 00:00:51]} 47.
Qf5 {[%clk 00:00:42]} {[%emt 00:00:52]} h6 {[%clk 00:02:53]} {[%emt 00:03:33]}
48. Ne1 {[%clk 00:00:40]} {[%emt 00:00:32]} Qa7+ {[%clk 00:02:06]} {[%emt
00:01:18]} 49. Kh1 {[%clk 00:00:43]} {[%emt 00:00:26]} Qa6 {[%clk 00:01:51]}
{[%emt 00:00:45]} 50. Kg1 {[%clk 00:00:32]} {[%emt 00:00:41]} Qb6+ {[%clk
00:02:01]} {[%emt 00:00:20]} 51. Kh1 {[%clk 00:00:51]} {[%emt 00:00:11]} Rc5
{[%clk 00:02:26]} {[%emt 00:00:04]} 52. Qf3 {[%clk 00:00:42]} {[%emt 00:00:39]}
Qg6 {[%clk 00:02:08]} {[%emt 00:00:49]} 53. Nd3 {[%clk 00:00:33]} {[%emt
00:00:39]} Rh5+ {[%clk 00:02:28]} {[%emt 00:00:10]} 54. Kg1 {[%clk 00:00:59]}
{[%emt 00:00:03]} Bd4+ {[%clk 00:02:49]} {[%emt 00:00:09]} 55. Nf2 {[%clk
00:01:20]} {[%emt 00:00:10]} Rf5 {[%clk 00:02:58]} {[%emt 00:00:21]} 56. Qe4
{[%clk 00:00:51]} {[%emt 00:00:59]} Bc5 {[%clk 00:02:05]} {[%emt 00:01:23]} 57.
Qe2 {[%clk 00:00:32]} {[%emt 00:00:48]} Qg3 {[%clk 00:01:13]} {[%emt 00:01:22]}
58. Qd2 {[%clk 00:00:33]} {[%emt 00:00:30]} Kg7 {[%clk 00:00:43]} {[%emt
00:00:59]} 59. Qd7+ {[%clk 00:00:38]} {[%emt 00:00:25]} Rf7 {[%clk 00:01:08]}
{[%emt 00:00:06]} 60. Qd2 {[%clk 00:00:55]} {[%emt 00:00:13]} Be3 {[%clk
00:01:02]} {[%emt 00:00:36]} 61. Qc3+ {[%clk 00:00:39]} {[%emt 00:00:46]} Kg8
{[%clk 00:00:45]} {[%emt 00:00:46]} 62. Qc8+ {[%clk 00:00:44]} {[%emt
00:00:25]} Rf8 {[%clk 00:01:10]} {[%emt 00:00:05]} 63. Qc4+ {[%clk 00:00:54]}
{[%emt 00:00:20]} Kh7 {[%clk 00:01:34]} {[%emt 00:00:06]} 64. Qc2+ {[%clk
00:00:52]} {[%emt 00:00:32]} Kg7 {[%clk 00:01:59]} {[%emt 00:00:05]} 65. Qc3+
{[%clk 00:01:12]} {[%emt 00:00:10]} Kg6 {[%clk 00:02:15]} {[%emt 00:00:12]} 66.
Qd3+ {[%clk 00:01:06]} {[%emt 00:00:38]} Kg5 {[%clk 00:00:33]} {[%emt
00:02:13]} 67. Qc2 {[%clk 00:00:33]} {[%emt 00:01:03]} Bd4 {[%clk 00:00:32]}
{[%emt 00:00:31]} 68. Qd2+ {[%clk 00:00:34]} {[%emt 00:00:29]} Rf4 {[%clk
00:00:51]} {[%emt 00:00:10]} 69. Qe2 {[%clk 00:00:37]} {[%emt 00:00:27]} Be3
{[%clk 00:00:44]} {[%emt 00:00:38]} 70. Qc2 {[%clk 00:00:33]} {[%emt 00:00:34]}
Kh4 {[%clk 00:00:33]} {[%emt 00:00:41]} 71. Qb2 {[%clk 00:00:33]} {[%emt
00:00:29]} Bd4 {[%clk 00:00:37]} {[%emt 00:00:26]} 72. Qe2 {[%clk 00:00:32]}
{[%emt 00:00:31]} Be3 {[%clk 00:00:33]} {[%emt 00:00:34]} 73. Qb2 {[%clk
00:00:47]} {[%emt 00:00:15]} Rg4 {[%clk 00:00:33]} {[%emt 00:00:30]} 74. Qf6+
{[%clk 00:00:51]} {[%emt 00:00:25]} Kh5 {[%clk 00:00:46]} {[%emt 00:00:18]} 75.
Qf5+ {[%clk 00:00:42]} {[%emt 00:00:39]} Rg5 {[%clk 00:01:08]} {[%emt
00:00:07]} 76. Qe4 {[%clk 00:00:33]} {[%emt 00:00:38]} Re5 {[%clk 00:00:42]}
{[%emt 00:00:57]} 77. Qf3+ {[%clk 00:00:41]} {[%emt 00:00:22]} Kh4 {[%clk
00:01:07]} {[%emt 00:00:05]} 78. Qf6+ {[%clk 00:00:35]} {[%emt 00:00:36]} Kh5
{[%clk 00:01:06]} {[%emt 00:00:31]} 79. Qf3+ {[%clk 00:00:54]} {[%emt
00:00:11]} Kh4 {[%clk 00:00:44]} {[%emt 00:00:53]} 80. Qf6+ {[%clk 00:01:20]}
{[%emt 00:00:05]} Bg5 {[%clk 00:01:06]} {[%emt 00:00:07]} 81. Nh1 {[%clk
00:00:33]} {[%emt 00:01:16]} Qe3+ {[%clk 00:00:43]} {[%emt 00:00:53]} 82. Qf2+
{[%clk 00:01:00]} {[%emt 00:00:03]} Kg4 {[%clk 00:01:02]} {[%emt 00:00:12]} 83.
Rd1 {[%clk 00:00:48]} {[%emt 00:00:42]} Bf4 {[%clk 00:01:00]} {[%emt 00:00:32]}
84. g3 {[%clk 00:00:39]} {[%emt 00:00:39]} Bg5 {[%emt 00:01:00]} 85. Qxe3
{[%clk 00:00:36]} {[%emt 00:00:33]} Bxe3+ {[%clk 00:00:54]} {[%emt 00:00:07]}
86. Kg2 {[%clk 00:00:52]} {[%emt 00:00:14]} Ra5 {[%clk 00:00:38]} {[%emt
00:00:45]} 87. Nf2+ {[%clk 00:01:05]} {[%emt 00:00:17]} Bxf2 {[%clk 00:01:01]}
{[%emt 00:00:07]} 88. Kxf2 {[%clk 00:01:33]} {[%emt 00:00:02]} Ra2+ {[%clk
00:01:23]} {[%emt 00:00:08]} 1/2-1/2

[Event "IV Elllobregat Open Chess Tmnt"]
[Site "Sant Boi de Llobregat, Spain"]
[Date "2023.11.30"]
[Round "1.14"]
[White "Peralta, Fernando"]
[Black "Goh, Zi Han"]
[Result "1/2-1/2"]
[TimeControl "90min/40moves + 15min/end + 30sec from move 1"]
[WhiteFideId "105309"]
[BlackFideId "5819156"]
[WhiteElo "2580"]
[BlackElo "2333"]

1. d4 {[%clk 01:30:57]} {[%emt 00:00:02]} d5 {[%clk 01:29:44]} {[%emt
00:01:17]} 2. c4 {[%clk 01:31:20]} {[%emt 00:00:06]} c6 {[%clk 01:29:58]}
{[%emt 00:00:16]} 3. Nf3 {[%clk 01:31:43]} {[%emt 00:00:07]} Nf6 {[%clk
01:30:10]} {[%emt 00:00:17]} 4. Nc3 {[%clk 01:32:06]} {[%emt 00:00:06]} e6
{[%clk 01:30:11]} {[%emt 00:00:30]} 5. e3 {[%clk 01:32:31]} {[%emt 00:00:05]}
Nbd7 {[%clk 01:30:17]} {[%emt 00:00:24]} 6. Qc2 {[%clk 01:32:53]} {[%emt
00:00:08]} Bd6 {[%clk 01:29:28]} {[%emt 00:01:19]} 7. b3 {[%clk 01:33:11]}
{[%emt 00:00:12]} O-O {[%clk 01:28:58]} {[%emt 00:01:00]} 8. Be2 {[%clk
01:33:33]} {[%emt 00:00:08]} e5 {[%clk 01:27:36]} {[%emt 00:01:52]} 9. cxd5
{[%clk 01:33:47]} {[%emt 00:00:16]} cxd5 {[%clk 01:27:47]} {[%emt 00:00:17]} 10.
Nb5 {[%clk 01:34:10]} {[%emt 00:00:09]} Bb4+ {[%clk 01:27:40]} {[%emt
00:00:37]} 11. Bd2 {[%clk 01:34:32]} {[%emt 00:00:08]} Bxd2+ {[%clk 01:27:01]}
{[%emt 00:01:08]} 12. Nxd2 {[%clk 01:34:52]} {[%emt 00:00:11]} a6 {[%clk
01:26:40]} {[%emt 00:00:51]} 13. dxe5 {[%clk 01:34:58]} {[%emt 00:00:24]} Nxe5
{[%clk 01:26:56]} {[%emt 00:00:14]} 14. Nd4 {[%clk 01:35:23]} {[%emt 00:00:06]}
Bg4 {[%clk 01:26:18]} {[%emt 00:01:08]} 15. Bxg4 {[%clk 01:34:19]} {[%emt
00:01:33]} Nfxg4 {[%clk 01:26:19]} {[%emt 00:00:28]} 16. O-O {[%clk 01:33:06]}
{[%emt 00:01:45]} Rc8 {[%clk 01:25:36]} {[%emt 00:01:13]} 17. Qf5 {[%clk
01:32:05]} {[%emt 00:01:31]} g6 {[%clk 01:25:14]} {[%emt 00:00:52]} 18. Qf4
{[%clk 01:32:07]} {[%emt 00:00:27]} Qe7 {[%clk 01:23:09]} {[%emt 00:02:36]} 19.
N2f3 {[%clk 01:29:28]} {[%emt 00:03:09]} Nxf3+ {[%clk 01:21:25]} {[%emt
00:02:14]} 20. gxf3 {[%clk 01:21:35]} {[%emt 00:08:23]} Ne5 {[%clk 01:12:26]}
{[%emt 00:09:29]} 21. Rad1 {[%clk 01:20:26]} {[%emt 00:01:38]} Kg7 {[%clk
01:08:50]} {[%emt 00:04:07]} 22. Rd2 {[%emt 00:04:28]} Qf6 {[%clk 01:01:42]}
{[%emt 00:07:22]} 23. Qxf6+ {[%clk 01:15:23]} {[%emt 00:01:50]} Kxf6 {[%clk
01:02:06]} {[%emt 00:00:06]} 24. Rfd1 {[%clk 01:15:37]} {[%emt 00:00:16]} g5
{[%clk 00:43:15]} {[%emt 00:19:21]} 25. Kf1 {[%clk 00:56:09]} {[%emt 00:19:58]}
Rfd8 {[%clk 00:37:37]} {[%emt 00:06:08]} 26. Ke2 {[%clk 00:56:23]} {[%emt
00:00:17]} h5 {[%clk 00:35:37]} {[%emt 00:02:30]} 27. h3 {[%clk 00:53:23]}
{[%emt 00:03:29]} Rc3 {[%clk 00:30:53]} {[%emt 00:05:13]} 28. Nc2 {[%clk
00:45:17]} {[%emt 00:08:37]} a5 {[%clk 00:29:38]} {[%emt 00:01:46]} 29. Nd4
{[%clk 00:43:58]} {[%emt 00:01:49]} Rc5 {[%clk 00:27:15]} {[%emt 00:02:53]} 30.
Nc2 {[%clk 00:29:58]} {[%emt 00:14:31]} Rdc8 {[%clk 00:23:14]} {[%emt
00:04:30]} 31. Ne1 {[%clk 00:29:51]} {[%emt 00:00:37]} Ke6 {[%clk 00:21:57]}
{[%emt 00:01:48]} 32. Ng2 {[%clk 00:26:14]} {[%emt 00:04:07]} Ng6 {[%clk
00:19:39]} {[%emt 00:02:48]} 33. Ne1 {[%clk 00:25:24]} {[%emt 00:01:20]} Ne5
{[%clk 00:19:21]} {[%emt 00:00:49]} 34. Ng2 {[%clk 00:14:49]} {[%emt 00:11:04]}
1/2-1/2

[Event "IV Elllobregat Open Chess Tmnt"]
[Site "Sant Boi de Llobregat, Spain"]
[Date "2023.11.30"]
[Round "1.15"]
[White "Bakhrillaev, Bakhrom"]
[Black "Nasuta, Grzegorz"]
[Result "1-0"]
[TimeControl "90min/40moves + 15min/end + 30sec from move 1"]
[WhiteFideId "14212285"]
[BlackFideId "1141686"]
[WhiteElo "2332"]
[BlackElo "2579"]

1. d4 {[%clk 01:30:59]} d5 {[%clk 01:30:53]} {[%emt 00:00:07]} 2. c4 {[%clk
01:31:25]} {[%emt 00:00:03]} c6 {[%clk 01:31:17]} {[%emt 00:00:06]} 3. Nf3
{[%clk 01:31:51]} {[%emt 00:00:04]} Nf6 {[%clk 01:31:40]} {[%emt 00:00:07]} 4.
g3 {[%clk 01:32:15]} {[%emt 00:00:06]} Bg4 {[%clk 01:25:20]} {[%emt 00:06:50]}
5. Ne5 {[%clk 01:32:39]} {[%emt 00:00:07]} Bf5 {[%clk 01:25:34]} {[%emt
00:00:17]} 6. cxd5 {[%clk 01:32:57]} {[%emt 00:00:12]} Qxd5 {[%clk 01:22:11]}
{[%emt 00:03:53]} 7. f3 {[%clk 01:33:18]} {[%emt 00:00:09]} Bxb1 {[%clk
01:21:36]} {[%emt 00:01:05]} 8. Rxb1 {[%clk 01:33:45]} {[%emt 00:00:03]} e6
{[%clk 01:20:59]} {[%emt 00:01:08]} 9. a3 {[%clk 01:28:30]} {[%emt 00:05:46]}
c5 {[%clk 01:02:01]} {[%emt 00:19:27]} 10. Be3 {[%clk 01:13:06]} {[%emt
00:15:53]} Bd6 {[%clk 00:14:19]} {[%emt 00:48:12]} 11. Qa4+ {[%clk 01:07:00]}
{[%emt 00:06:35]} Ke7 {[%clk 00:13:57]} {[%emt 00:00:52]} 12. Rd1 {[%clk
01:02:48]} {[%emt 00:04:43]} c4 {[%clk 00:06:48]} {[%emt 00:07:39]} 13. Bg2
{[%clk 00:55:49]} {[%emt 00:07:29]} b5 {[%clk 00:02:24]} {[%emt 00:04:54]} 14.
Qc2 {[%clk 00:54:13]} {[%emt 00:02:06]} Nc6 {[%clk 00:02:45]} {[%emt 00:00:09]}
15. Rg1 {[%clk 00:49:34]} {[%emt 00:05:08]} Bxe5 {[%clk 00:01:55]} {[%emt
00:01:21]} 16. f4 {[%clk 00:48:07]} {[%emt 00:01:57]} Bxf4 {[%clk 00:00:44]}
{[%emt 00:01:40]} 17. Bxd5 {[%clk 00:48:22]} {[%emt 00:00:16]} Bxe3 {[%clk
00:01:07]} {[%emt 00:00:06]} 18. Bxc6 {[%clk 00:48:44]} {[%emt 00:00:08]} Bxg1
{[%clk 00:00:47]} {[%emt 00:00:50]} 19. Bxa8 {[%clk 00:49:06]} {[%emt
00:00:08]} Rxa8 {[%clk 00:01:12]} {[%emt 00:00:06]} 20. e4 {[%clk 00:46:56]}
{[%emt 00:02:41]} Rd8 {[%clk 00:01:36]} {[%emt 00:00:05]} 21. Qc3 {[%clk
00:45:22]} {[%emt 00:02:04]} Nxe4 {[%clk 00:01:31]} {[%emt 00:00:36]} 22. Qb4+
{[%clk 00:45:41]} {[%emt 00:00:10]} Kf6 {[%clk 00:01:12]} {[%emt 00:00:48]} 23.
Qxb5 {[%clk 00:43:48]} {[%emt 00:02:24]} 1-0

[Event "IV Elllobregat Open Chess Tmnt"]
[Site "Sant Boi de Llobregat, Spain"]
[Date "2023.11.30"]
[Round "1.16"]
[White "Kozak, Adam"]
[Black "Shohat, Yotam"]
[Result "1-0"]
[TimeControl "90min/40moves + 15min/end + 30sec from move 1"]
[WhiteFideId "753246"]
[BlackFideId "2813955"]
[WhiteElo "2578"]
[BlackElo "2332"]

1. Nf3 {[%clk 01:30:54]} {[%emt 00:00:05]} c5 {[%clk 01:30:18]} {[%emt
00:00:42]} 2. g3 {[%clk 01:30:36]} {[%emt 00:00:48]} g6 {[%clk 01:29:09]}
{[%emt 00:01:39]} 3. c4 {[%clk 01:30:34]} {[%emt 00:00:33]} Bg7 {[%clk
01:29:25]} {[%emt 00:00:14]} 4. Bg2 {[%clk 01:30:48]} {[%emt 00:00:16]} Nc6
{[%clk 01:29:47]} {[%emt 00:00:08]} 5. Nc3 {[%clk 01:31:08]} {[%emt 00:00:10]}
e6 {[%clk 01:28:44]} {[%emt 00:01:33]} 6. h4 {[%clk 01:28:41]} {[%emt
00:02:57]} Nf6 {[%clk 01:28:29]} {[%emt 00:00:45]} 7. d4 {[%clk 01:16:42]}
{[%emt 00:12:30]} cxd4 {[%clk 01:26:45]} {[%emt 00:02:13]} 8. Nxd4 {[%clk
01:16:44]} {[%emt 00:00:28]} O-O {[%clk 01:26:59]} {[%emt 00:00:15]} 9. O-O
{[%clk 01:07:33]} {[%emt 00:09:42]} d5 {[%clk 01:24:08]} {[%emt 00:03:21]} 10.
cxd5 {[%clk 01:04:29]} {[%emt 00:03:35]} Nxd4 {[%clk 01:20:21]} {[%emt
00:04:17]} 11. Qxd4 {[%clk 01:03:35]} {[%emt 00:01:24]} Nxd5 {[%clk 01:20:45]}
{[%emt 00:00:05]} 12. Qc4 {[%clk 01:01:41]} {[%emt 00:02:24]} Nxc3 {[%clk
01:16:13]} {[%emt 00:05:02]} 13. bxc3 {[%clk 01:02:04]} {[%emt 00:00:07]} Qa5
{[%clk 01:15:45]} {[%emt 00:00:57]} 14. Rb1 {[%clk 01:00:53]} {[%emt 00:01:42]}
Qxc3 {[%clk 00:58:03]} {[%emt 00:18:12]} 15. Qa4 {[%clk 00:59:16]} {[%emt
00:02:08]} Qd4 {[%clk 00:44:30]} {[%emt 00:14:03]} 16. Qa3 {[%clk 00:57:50]}
{[%emt 00:01:56]} Qc3 {[%clk 00:40:05]} {[%emt 00:04:54]} 17. Rd1 {[%clk
00:29:25]} {[%emt 00:28:55]} Qxa3 {[%clk 00:31:02]} {[%emt 00:09:34]} 18. Bxa3
{[%clk 00:29:53]} {[%emt 00:00:02]} Re8 {[%clk 00:31:21]} {[%emt 00:00:10]} 19.
Bc5 {[%clk 00:27:29]} {[%emt 00:02:55]} Bf8 {[%clk 00:28:01]} {[%emt 00:03:50]}
20. Be3 {[%clk 00:26:54]} {[%emt 00:01:05]} a5 {[%clk 00:23:50]} {[%emt
00:04:41]} 21. a4 {[%clk 00:23:44]} {[%emt 00:03:41]} Bb4 {[%clk 00:22:21]}
{[%emt 00:01:58]} 22. Rbc1 {[%clk 00:21:36]} {[%emt 00:02:39]} e5 {[%clk
00:10:51]} {[%emt 00:12:00]} 23. Rc7 {[%clk 00:17:39]} {[%emt 00:04:27]} e4
{[%clk 00:08:20]} {[%emt 00:03:00]} 24. Rd4 {[%clk 00:11:28]} {[%emt 00:06:41]}
Bf5 {[%clk 00:07:21]} {[%emt 00:01:29]} 25. Rxb7 {[%clk 00:08:37]} {[%emt
00:03:22]} Bc5 {[%clk 00:07:18]} {[%emt 00:00:32]} 26. Rd5 {[%clk 00:08:06]}
{[%emt 00:01:01]} Bxe3 {[%clk 00:07:41]} {[%emt 00:00:07]} 27. fxe3 {[%clk
00:08:34]} {[%emt 00:00:02]} h5 {[%clk 00:04:00]} {[%emt 00:04:11]} 28. Rb6
{[%clk 00:00:34]} {[%emt 00:08:31]} Kg7 {[%clk 00:02:27]} {[%emt 00:02:03]} 29.
Kf2 {[%clk 00:00:53]} {[%emt 00:00:11]} Re6 {[%clk 00:01:44]} {[%emt 00:01:13]}
30. Rxe6 {[%clk 00:00:38]} {[%emt 00:00:45]} fxe6 {[%clk 00:01:03]} {[%emt
00:01:11]} 31. Rd4 {[%clk 00:00:36]} {[%emt 00:00:32]} Kf6 {[%clk 00:00:05]}
{[%emt 00:00:57]} 32. Bxe4 {[%clk 00:00:41]} {[%emt 00:00:25]} Bxe4 {[%clk
00:00:37]} {[%emt 00:00:28]} 33. Rxe4 {[%clk 00:01:07]} {[%emt 00:00:03]} Rb8
{[%clk 00:00:45]} {[%emt 00:00:23]} 34. Rc4 {[%clk 00:00:57]} {[%emt 00:00:40]}
Rb4 {[%clk 00:00:36]} {[%emt 00:00:40]} 35. Rxb4 {[%clk 00:01:10]} {[%emt
00:00:17]} axb4 {[%clk 00:00:58]} {[%emt 00:00:07]} 36. Ke1 {[%clk 00:01:05]}
{[%emt 00:00:35]} Ke5 {[%clk 00:01:19]} {[%emt 00:00:09]} 37. Kd2 {[%clk
00:00:48]} {[%emt 00:00:46]} Kd5 {[%clk 00:01:04]} {[%emt 00:00:45]} 38. Kc2
{[%clk 00:00:51]} {[%emt 00:00:28]} Kc4 {[%clk 00:01:08]} {[%emt 00:00:25]} 39.
Kb2 {[%clk 00:01:13]} {[%emt 00:00:08]} Kd5 {[%clk 00:00:31]} {[%emt 00:01:07]}
40. Kb3 {[%clk 00:16:36]} {[%emt 00:00:07]} Kc5 {[%clk 00:15:57]} {[%emt
00:00:04]} 41. e4 {[%clk 00:16:55]} {[%emt 00:00:11]} 1-0